bitfinex/quotes_BTCUSD_20251007
["timestamp","ask_amount","ask_price","bid_price","bid_amount"]
[1759798243237,1.1963222,124870.0,124860.0,0.00053385]
[1759798243440,1.21881956,124870.0,124860.0,0.00053385]
[1759798243736,1.24285608,124870.0,124860.0,0.00053385]
[1759798244136,1.27300798,124870.0,124860.0,0.00053385]
[1759798244384,1.26800798,124870.0,124860.0,0.00053385]
[1759798244588,1.27200798,124870.0,124860.0,0.00053385]
[1759798244775,1.28200798,124870.0,124860.0,0.00053385]
[1759798247057,0.75092742,124870.0,124860.0,0.00053385]
[1759798247258,0.94984006,124870.0,124860.0,0.00584385]
[1759798247438,0.95195006,124870.0,124860.0,0.00268385]
[1759798247636,0.95195006,124870.0,124860.0,0.00053385]
[1759798247838,0.95513006,124870.0,124860.0,0.00053385]
[1759798248231,0.72865006,124870.0,124860.0,0.00053385]
[1759798248432,0.95513006,124870.0,124860.0,0.00053385]
[1759798249021,0.62132515,124870.0,124860.0,0.00268385]
[1759798249384,0.82376863,124870.0,124860.0,0.00584385]
[1759798249637,0.82587863,124870.0,124860.0,0.00053385]
[1759798249839,0.90905543,124870.0,124860.0,0.00053385]
[1759798250220,0.91353543,124870.0,124860.0,0.00053385]
[1759798252207,0.68305543,124870.0,124860.0,0.00053385]
[1759798252372,0.90953543,124870.0,124860.0,0.00053385]
[1759798252724,0.89935543,124870.0,124860.0,0.00268385]
[1759798252863,0.90435543,124870.0,124860.0,0.00268385]
[1759798253245,0.90753543,124870.0,124860.0,0.00053385]
[1759798253425,0.68105543,124870.0,124860.0,0.00053385]
[1759798253597,0.67787543,124870.0,124860.0,0.00053385]
[1759798253808,0.90435543,124870.0,124860.0,0.00053385]
[1759798254008,0.90753543,124870.0,124860.0,0.00053385]
[1759798258781,0.16019223,124850.0,124840.0,0.09536]
[1759798258974,0.16019223,124850.0,124840.0,0.59536]
[1759798259162,0.16230223,124850.0,124840.0,0.09751]
[1759798259696,0.16019223,124850.0,124840.0,0.09751]
[1759798259860,0.16219223,124850.0,124840.0,0.09751]
[1759798260626,0.16219223,124850.0,124840.0,0.00215]
[1759798260810,0.16430223,124850.0,124840.0,0.72863]
[1759798261016,0.16430223,124850.0,124840.0,0.22863]
[1759798261339,0.16219223,124850.0,124840.0,0.23179]
[1759798261869,0.16219223,124850.0,124840.0,0.22863]
[1759798262071,0.16219223,124850.0,124840.0,0.00215]
[1759798262269,0.16430223,124850.0,124830.0,0.00220232]
[1759798262475,0.16020506,124840.0,124830.0,0.58544232]
[1759798262704,0.16021789,124830.0,124820.0,0.005]
[1759798262898,0.16339789,124830.0,124820.0,0.33875775]
[1759798263105,0.16550789,124830.0,124820.0,0.31472]
[1759798263336,0.16232789,124830.0,124820.0,0.31687]
[1759798263701,0.16232789,124830.0,124820.0,0.31736662]
[1759798265139,0.16232789,124830.0,124820.0,0.32036662]
[1759798265343,0.16232789,124830.0,124820.0,0.32136662]
[1759798265828,0.16232789,124830.0,124820.0,0.23812662]
[1759798266016,0.16232789,124830.0,124820.0,0.33013131]
[1759798266472,0.16232789,124830.0,124820.0,0.24689131]
[1759798266667,0.16232789,124830.0,124820.0,0.32498131]
[1759798266932,0.16232789,124830.0,124820.0,0.01626131]
[1759798267138,0.16550789,124830.0,124820.0,0.31621662]
[1759798267336,0.16550789,124830.0,124820.0,0.00649662]
[1759798267486,0.16550789,124830.0,124820.0,0.31621662]
[1759798267701,0.14050789,124830.0,124820.0,0.00649662]
[1759798267862,0.14050789,124830.0,124820.0,0.01521957]
[1759798268257,0.14050789,124830.0,124820.0,0.00649662]
[1759798268467,0.14050789,124830.0,124820.0,0.31621662]
[1759798268674,0.14050789,124830.0,124820.0,0.00649662]
[1759798268883,0.14050789,124830.0,124820.0,0.31621662]
[1759798269292,0.14050789,124830.0,124820.0,0.23297662]
[1759798269552,0.14050789,124830.0,124820.0,0.23376698]
[1759798271908,0.11550789,124830.0,124820.0,0.23376698]
[1759798273269,0.11021789,124830.0,124820.0,0.23907698]
[1759798273431,0.11021789,124830.0,124820.0,0.47938771]
[1759798273664,0.11232789,124830.0,124820.0,0.47938771]
[1759798273786,0.11550789,124830.0,124820.0,0.47723771]
[1759798274217,0.11550789,124830.0,124820.0,0.16751771]
[1759798274420,0.11550789,124830.0,124820.0,0.47723771]
[1759798276945,0.11550789,124830.0,124820.0,0.16751771]
[1759798277156,0.11550789,124830.0,124820.0,0.00728698]
[1759798277311,0.11550789,124830.0,124820.0,0.47723771]
[1759798279395,0.11021789,124830.0,124820.0,0.47932771]
[1759798279728,0.11233789,124830.0,124820.0,0.47932771]
[1759798280160,0.11534789,124830.0,124820.0,0.47723771]
[1759798283307,0.11233789,124830.0,124820.0,0.47932771]
[1759798284270,0.11534789,124830.0,124820.0,0.47723771]
[1759798285348,0.16233789,124830.0,124820.0,0.47932771]
[1759798285568,0.16020506,124840.0,124830.0,0.16021789]
[1759798285803,0.22824989,124850.0,124840.0,0.5]
[1759798286018,0.22824989,124850.0,124840.0,0.22857]
[1759798286231,0.22824989,124850.0,124840.0,0.22896512]
[1759798286427,0.23036989,124850.0,124840.0,0.22896512]
[1759798286981,0.23337989,124850.0,124840.0,0.22896512]
[1759798287428,0.23537989,124850.0,124840.0,0.22896512]
[1759798287621,0.23537989,124850.0,124840.0,0.22687512]
[1759798288063,0.23837989,124850.0,124840.0,0.22687512]
[1759798288483,0.23536989,124850.0,124840.0,0.22896512]
[1759798288688,0.23837989,124850.0,124840.0,0.22687512]
[1759798289375,0.23837989,124850.0,124840.0,0.00039512]
[1759798289537,0.26285119,124850.0,124840.0,0.16875512]
[1759798291196,0.26285119,124850.0,124840.0,0.00039512]
[1759798291572,0.34597325,124850.0,124840.0,0.16935512]
[1759798292107,0.34597325,124850.0,124840.0,0.00039512]
[1759798304551,0.32150195,124850.0,124840.0,0.00039512]
[1759798316650,0.31637195,124850.0,124840.0,0.00251512]
[1759798316862,0.31637195,124850.0,124840.0,0.00575512]
[1759798317076,0.16020506,124840.0,124820.0,0.22436961]
[1759798317276,0.16020506,124840.0,124830.0,0.16021738]
[1759798318302,0.16020506,124840.0,124830.0,0.38665738]
[1759798319465,0.16120506,124840.0,124830.0,0.38665738]
[1759798319845,0.001,124840.0,124830.0,0.84113738]
[1759798320027,0.001,124840.0,124830.0,0.92425944]
[1759798320276,0.001,124840.0,124830.0,0.94829405]
[1759798320409,0.002,124840.0,124830.0,0.94829405]
[1759798321021,0.001,124840.0,124830.0,0.94829405]
[1759798321221,0.16817489,124870.0,124850.0,0.16018198]
[1759798321438,0.16817489,124870.0,124860.0,0.22644]
[1759798321607,0.17346489,124870.0,124860.0,0.22644]
[1759798322320,0.1601794,124860.0,124850.0,0.24342198]
[1759798322502,0.1601794,124860.0,124850.0,0.46982198]
[1759798322662,0.16067602,124860.0,124850.0,0.46982198]
[1759798322874,0.74879807,124900.0,124850.0,0.46982198]
[1759798323078,0.16091083,124860.0,124850.0,0.46997103]
[1759798323277,0.16091083,124860.0,124850.0,0.47209103]
[1759798323459,0.00073143,124860.0,124850.0,0.4961236]
[1759798323677,0.00173143,124860.0,124850.0,0.4961236]
[1759798323884,0.00273143,124860.0,124850.0,0.4961236]
[1759798324086,0.00273143,124860.0,124850.0,0.47209103]
[1759798325526,0.16291083,124860.0,124850.0,0.47209103]
[1759798325956,0.16291083,124860.0,124850.0,0.48071037]
[1759798328432,0.16291083,124860.0,124850.0,0.16246128]
[1759798328577,0.00484143,124860.0,124850.0,0.47210128]
[1759798329365,0.00273143,124860.0,124850.0,0.48076324]
[1759798329802,0.16291083,124860.0,124850.0,0.48076324]
[1759798331062,0.16820083,124860.0,124850.0,0.46998128]
[1759798331475,0.16820083,124860.0,124850.0,0.47837456]
[1759798332583,0.16820083,124860.0,124850.0,0.48049456]
[1759798332785,0.16502083,124860.0,124850.0,0.48049456]
[1759798333013,0.16502083,124860.0,124850.0,0.17085456]
[1759798333248,0.16502083,124860.0,124850.0,0.39513456]
[1759798333630,0.16820083,124860.0,124850.0,0.39513456]
[1759798333871,0.16820083,124860.0,124850.0,0.00014905]
[1759798334076,0.16820083,124860.0,124850.0,0.23525915]
[1759798334275,0.16820083,124860.0,124850.0,0.39545138]
[1759798334476,0.16502083,124860.0,124850.0,0.39757138]
[1759798336894,0.00484143,124860.0,124850.0,0.39757138]
[1759798337119,0.16502083,124860.0,124850.0,0.39757138]
[1759798337536,0.16291083,124860.0,124850.0,0.39757138]
[1759798338860,0.00273143,124860.0,124850.0,0.39757138]
[1759798339317,0.00273143,124860.0,124850.0,1.84680238]
[1759798339496,0.00273143,124860.0,124850.0,1.87083376]
[1759798340154,0.00273143,124860.0,124850.0,2.21083376]
[1759798340352,0.00173143,124860.0,124850.0,2.21083376]
[1759798340585,0.00073143,124860.0,124850.0,2.21083376]
[1759798341794,0.00073143,124860.0,124850.0,2.29395582]
[1759798341997,0.00073143,124860.0,124850.0,2.29495582]
[1759798343952,0.00073143,124860.0,124850.0,2.06859582]
[1759798344328,0.00073143,124860.0,124850.0,2.37819582]
[1759798344531,0.00073143,124860.0,124850.0,2.04049744]
[1759798344736,0.00073143,124860.0,124850.0,2.35009744]
[1759798345533,0.00073143,124860.0,124850.0,2.35873013]
[1759798346904,0.00073143,124860.0,124850.0,2.04913013]
[1759798347498,0.00073143,124860.0,124850.0,2.35869013]
[1759798348347,0.00073143,124860.0,124850.0,2.38884203]
[1759798348499,0.00073143,124860.0,124850.0,2.07928203]
[1759798348683,0.00073143,124860.0,124850.0,2.30560203]
[1759798348889,0.00073143,124860.0,124850.0,2.38884203]
[1759798349312,0.00073143,124860.0,124850.0,2.07928203]
[1759798349507,0.00073143,124860.0,124850.0,2.30560203]
[1759798349825,0.00278143,124860.0,124850.0,2.00366336]
[1759798350046,0.00600143,124860.0,124850.0,0.7432673]
[1759798350278,0.00600143,124860.0,124850.0,0.8801823]
[1759798350476,0.005,124880.0,124860.0,0.34]
[1759798350680,0.005,124880.0,124870.0,3.21004363]
[1759798350838,0.005,124880.0,124870.0,3.23865037]
[1759798351043,0.005,124880.0,124870.0,3.2626739]
[1759798352385,0.005,124880.0,124870.0,3.0358339]
[1759798352555,0.005,124880.0,124870.0,3.32030716]
[1759798353492,0.005,124880.0,124870.0,3.31830716]
[1759798353698,0.005,124880.0,124870.0,3.32230716]
[1759798353906,0.005,124880.0,124870.0,3.32130716]
[1759798354132,0.005,124880.0,124870.0,3.32330716]
[1759798355450,0.005,124880.0,124870.0,2.06421516]
[1759798355668,0.005,124880.0,124870.0,2.37421516]
[1759798356402,0.005,124880.0,124870.0,2.06421516]
[1759798356700,0.005,124880.0,124870.0,2.37421516]
[1759798356830,0.00539496,124880.0,124870.0,2.37421516]
[1759798357747,0.00539496,124880.0,124870.0,2.06421516]
[1759798358229,0.01042496,124880.0,124870.0,0.4360161]
[1759798358446,0.00539496,124880.0,124870.0,0.6627761]
[1759798358863,0.00539496,124880.0,124870.0,0.63875257]
[1759798364836,0.00039496,124880.0,124870.0,0.63875257]
[1759798374357,0.00039496,124880.0,124870.0,0.72187463]
[1759798382290,0.00557496,124880.0,124870.0,0.32875257]
[1759798382464,0.00557496,124880.0,124870.0,0.73268657]
[1759798382664,0.00557496,124880.0,124870.0,0.81588657]
[1759798383265,0.00039496,124880.0,124870.0,1.18107357]
[1759798383466,0.00039496,124880.0,124870.0,1.17707357]
[1759798383673,0.00039496,124880.0,124870.0,1.26019563]
[1759798384297,0.00039496,124880.0,124870.0,1.26119563]
[1759798399562,0.00039496,124880.0,124870.0,1.09665835]
[1759798399816,0.00039496,124880.0,124870.0,1.25682492]
[1759798408063,0.00039496,124880.0,124870.0,1.28084953]
[1759798420286,0.00237496,124880.0,124870.0,0.97112953]
[1759798420491,0.00530496,124880.0,124870.0,1.28064953]
[1759798420672,0.00039496,124880.0,124870.0,1.28064953]
[1759798421070,0.00039496,124880.0,124870.0,0.97112953]
[1759798421425,0.00530496,124880.0,124870.0,1.28064953]
[1759798421632,0.00039496,124880.0,124870.0,1.28064953]
[1759798423998,0.00039496,124880.0,124870.0,0.97112953]
[1759798424186,0.00530496,124880.0,124870.0,0.97112953]
[1759798424394,0.00530496,124880.0,124870.0,1.28064953]
[1759798424535,0.00530496,124880.0,124870.0,0.97112953]
[1759798424916,0.00039496,124880.0,124870.0,1.28064953]
[1759798425125,0.00039496,124880.0,124870.0,0.97112953]
[1759798425338,0.00554496,124880.0,124870.0,1.28064953]
[1759798425711,0.00554496,124880.0,124870.0,0.97112953]
[1759798425908,0.00554496,124880.0,124870.0,1.28064953]
[1759798426107,0.00039496,124880.0,124870.0,1.28064953]
[1759798430808,0.00256496,124880.0,124870.0,0.97112953]
[1759798431036,0.00554496,124880.0,124870.0,0.72877953]
[1759798431258,0.00554496,124880.0,124870.0,0.52282047]
[1759798431478,0.00554496,124880.0,124870.0,0.96518447]
[1759798432361,0.00039496,124880.0,124870.0,0.96518447]
[1759798438335,0.00256496,124880.0,124870.0,0.96518447]
[1759798439108,0.00039496,124880.0,124870.0,0.96518447]
[1759798439623,0.00256496,124880.0,124870.0,0.96518447]
[1759798439857,0.00554496,124880.0,124870.0,0.96518447]
[1759798442050,0.00039496,124880.0,124870.0,0.96518447]
[1759798442256,0.00554496,124880.0,124870.0,0.96518447]
[1759798443229,0.1656987,124880.0,124870.0,0.65566447]
[1759798443444,0.1656987,124880.0,124870.0,0.49671118]
[1759798443878,0.1656987,124880.0,124870.0,0.4062808]
[1759798444234,0.1656987,124880.0,124870.0,0.30952]
[1759798444438,0.1656987,124880.0,124870.0,0.46968657]
[1759798444763,0.1686987,124880.0,124870.0,0.46968657]
[1759798446108,0.00854496,124880.0,124870.0,0.46968657]
[1759798446352,0.1686987,124880.0,124870.0,0.46968657]
[1759798450560,0.1686987,124880.0,124870.0,0.16016657]
[1759798450767,0.1686987,124880.0,124870.0,0.30952]
[1759798451167,0.1686987,124880.0,124860.0,0.1122293]
[1759798451168,0.16016657,124870.0,124860.0,0.1122293]
[1759798451373,0.16531657,124870.0,124860.0,0.4987287]
[1759798451517,0.16551407,124870.0,124860.0,0.4987287]
[1759798451718,0.16551407,124870.0,124860.0,0.3385493]
[1759798451920,0.16551407,124870.0,124860.0,0.4987287]
[1759798452521,0.16651407,124870.0,124860.0,0.1892087]
[1759798452761,0.16651407,124870.0,124860.0,0.4987287]
[1759798456326,0.0063475,124870.0,124860.0,0.4987287]
[1759798456536,0.16651407,124870.0,124860.0,0.4987287]
[1759798458001,0.0063475,124870.0,124860.0,0.4987287]
[1759798462199,0.16651407,124870.0,124860.0,0.4987287]
[1759798463291,0.0063475,124870.0,124860.0,0.4987287]
[1759798463542,0.0011975,124870.0,124860.0,0.4987287]
[1759798463754,0.0011975,124870.0,124860.0,1.17856076]
[1759798465020,0.0001975,124870.0,124860.0,1.17956076]
[1759798465221,0.0001975,124870.0,124860.0,1.18056076]
[1759798465434,0.0001975,124870.0,124860.0,1.17956076]
[1759798465832,0.0001975,124870.0,124860.0,1.18156076]
[1759798466518,0.0001975,124870.0,124860.0,1.18056076]
[1759798466723,0.0001975,124870.0,124860.0,1.18356076]
[1759798478777,0.0001975,124870.0,124860.0,0.87404076]
[1759798478913,0.0053075,124870.0,124860.0,0.87404076]
[1759798479322,0.0053075,124870.0,124860.0,1.18352076]
[1759798479743,0.0001975,124870.0,124860.0,0.87404076]
[1759798479946,0.0001975,124870.0,124860.0,1.18352076]
[1759798480151,0.0001975,124870.0,124860.0,0.87404076]
[1759798480351,0.0001975,124870.0,124860.0,1.18352076]
[1759798480795,0.0001975,124870.0,124860.0,0.87404076]
[1759798480973,0.0001975,124870.0,124860.0,1.18352076]
[1759798481185,0.0001975,124870.0,124860.0,0.87404076]
[1759798481455,0.0053075,124870.0,124860.0,0.80779176]
[1759798481654,0.0053075,124870.0,124860.0,0.67004246]
[1759798482068,0.0053075,124870.0,124860.0,1.01004246]
[1759798482626,0.0053075,124870.0,124860.0,1.00704246]
[1759798483061,0.0053075,124870.0,124860.0,1.00804246]
[1759798483280,0.0053075,124870.0,124860.0,1.00604246]
[1759798483631,0.0053075,124870.0,124860.0,1.00704246]
[1759798490075,0.0001975,124870.0,124860.0,1.00704246]
[1759798490540,0.0054175,124870.0,124860.0,1.00704246]
[1759798494877,0.0001975,124870.0,124860.0,1.00704246]
[1759798498688,0.0001975,124870.0,124860.0,0.69756246]
[1759798498921,0.0001975,124870.0,124860.0,1.00708246]
[1759798499122,0.0001975,124870.0,124860.0,1.03110937]
[1759798502483,0.0054175,124870.0,124860.0,1.00708246]
[1759798502665,0.0001975,124870.0,124860.0,1.00708246]
[1759798504046,0.0001975,124870.0,124860.0,0.69756246]
[1759798504314,0.0001975,124870.0,124860.0,1.00704246]
[1759798504886,0.0023175,124870.0,124860.0,1.00704246]
[1759798505311,0.0001975,124870.0,124860.0,1.00704246]
[1759798515824,0.0022275,124870.0,124860.0,0.69756246]
[1759798516025,0.0052175,124870.0,124860.0,0.92384246]
[1759798516239,0.0052175,124870.0,124860.0,1.00704246]
[1759798519078,0.0052175,124870.0,124860.0,0.69756246]
[1759798519543,0.0052175,124870.0,124860.0,0.72757946]
[1759798519750,0.0052175,124870.0,124860.0,0.70289146]
[1759798519925,0.0052175,124870.0,124860.0,1.01241146]
[1759798520742,0.0052175,124870.0,124860.0,0.9252644]
[1759798521500,0.16538407,124870.0,124860.0,0.5071794]
[1759798521701,0.16538407,124870.0,124860.0,0.09024]
[1759798521923,0.16538407,124870.0,124860.0,0.4766594]
[1759798522150,0.16538407,124870.0,124860.0,0.23324]
[1759798522350,0.19793803,124870.0,124860.0,0.31648]
[1759798522957,0.19793803,124870.0,124860.0,0.31548]
[1759798523155,0.19793803,124870.0,124860.0,0.31448]
[1759798523428,0.16638407,124870.0,124860.0,0.31448]
[1759798524975,0.16638407,124870.0,124860.0,0.4746594]
[1759798531228,0.0062175,124870.0,124860.0,0.4746594]
[1759798533427,0.16638407,124870.0,124860.0,0.4746594]
[1759798533641,0.0062175,124870.0,124860.0,0.4746594]
[1759798535008,0.0011975,124870.0,124860.0,0.4746594]
[1759798535411,0.0011975,124870.0,124860.0,1.95751446]
[1759798537356,0.0011975,124870.0,124860.0,1.64803446]
[1759798537497,0.0011975,124870.0,124860.0,1.57607946]
[1759798538412,0.0061875,124870.0,124860.0,1.26659946]
[1759798538621,0.0061875,124870.0,124860.0,1.57607946]
[1759798538823,0.0061875,124870.0,124860.0,1.26659946]
[1759798539034,0.0061875,124870.0,124860.0,1.57607946]
[1759798539654,0.0061875,124870.0,124860.0,1.60010772]
[1759798540002,0.0061875,124870.0,124860.0,1.56090372]
[1759798541469,0.0061875,124870.0,124860.0,1.47766372]
[1759798541789,0.0061875,124870.0,124860.0,1.56090372]
[1759798543108,0.0740875,124870.0,124860.0,1.56090372]
[1759798544229,0.0340875,124870.0,124860.0,1.56288372]
[1759798546829,0.0340875,124870.0,124860.0,1.16680872]
[1759798547056,0.0391975,124870.0,124860.0,0.72449566]
[1759798547302,0.19936407,124870.0,124860.0,0.4746594]
[1759798547711,0.19936407,124870.0,124860.0,0.31448]
[1759798548118,0.19936407,124870.0,124860.0,0.4746594]
[1759798550943,0.19936407,124870.0,124860.0,0.1651794]
[1759798551150,0.19936407,124870.0,124860.0,0.2484194]
[1759798551353,0.19936407,124870.0,124860.0,0.4746594]
[1759798551554,0.0391975,124870.0,124860.0,0.4746594]
[1759798551700,0.19936407,124870.0,124860.0,0.4746594]
[1759798554942,0.19936407,124870.0,124860.0,0.005]
[1759798555343,0.19936407,124870.0,124860.0,0.4746594]
[1759798557648,0.19627407,124870.0,124860.0,0.4767494]
[1759798558268,0.19936407,124870.0,124860.0,0.4746594]
[1759798560897,0.19936407,124870.0,124860.0,0.3914194]
[1759798561101,0.19936407,124870.0,124860.0,0.4746594]
[1759798567353,0.0340875,124870.0,124860.0,0.4767494]
[1759798567585,0.0340875,124870.0,124860.0,1.6888674]
[1759798567946,0.0340875,124870.0,124860.0,1.7128967]
[1759798568154,0.0340875,124870.0,124860.0,1.79601876]
[1759798573159,0.0340435,124870.0,124860.0,1.79601876]
[1759798574266,0.0340435,124870.0,124860.0,1.71273876]
[1759798574462,0.0340435,124870.0,124860.0,1.79597876]
[1759798574670,0.0340435,124870.0,124860.0,1.79310876]
[1759798576144,0.0340435,124870.0,124860.0,1.79597876]
[1759798578617,0.0340435,124870.0,124860.0,1.48653876]
[1759798579055,0.0360935,124870.0,124860.0,0.52700676]
[1759798579257,0.0391935,124870.0,124860.0,0.83644676]
[1759798579672,0.0340435,124870.0,124860.0,0.83856676]
[1759798583226,0.0360935,124870.0,124860.0,0.52700676]
[1759798583406,0.0391935,124870.0,124860.0,0.69600076]
[1759798583851,0.0360935,124870.0,124860.0,0.69812076]
[1759798584402,0.0340435,124870.0,124860.0,0.69812076]
[1759798586814,0.0340435,124870.0,124860.0,0.38868076]
[1759798587024,0.0340435,124870.0,124860.0,0.69812076]
[1759798587847,0.0340435,124870.0,124860.0,0.70099076]
[1759798588057,0.0360935,124870.0,124860.0,0.69812076]
[1759798588262,0.0340435,124870.0,124860.0,0.69808076]
[1759798589669,0.0340435,124870.0,124860.0,0.38868076]
[1759798589875,0.0340435,124870.0,124860.0,0.69808076]
[1759798590693,0.0360935,124870.0,124860.0,0.38868076]
[1759798590950,0.0391935,124870.0,124860.0,0.4153687]
[1759798591158,0.0391935,124870.0,124860.0,0.5988417]
[1759798604009,0.0391935,124870.0,124860.0,0.2894417]
[1759798604251,0.0391935,124870.0,124860.0,0.5988417]
[1759798605813,0.0391935,124870.0,124860.0,0.6009917]
[1759798606064,0.0360935,124870.0,124860.0,0.6009917]
[1759798606286,0.0390835,124870.0,124860.0,0.5988417]
[1759798613487,0.0390835,124870.0,124860.0,0.6009917]
[1759798614043,0.0390835,124870.0,124860.0,0.5988417]
[1759798617043,0.0390835,124870.0,124860.0,0.54955622]
[1759798617279,0.0390835,124870.0,124860.0,0.96993143]
[1759798617480,0.0390835,124870.0,124860.0,0.94967543]
[1759798618298,0.0360935,124870.0,124860.0,0.95182543]
[1759798618914,0.0390835,124870.0,124860.0,0.95182543]
[1759798619113,0.0390835,124870.0,124860.0,0.94967543]
[1759798620059,0.0390835,124870.0,124860.0,0.75736643]
[1759798620397,0.0390835,124870.0,124860.0,0.72938143]
[1759798621680,0.0360935,124870.0,124860.0,0.73153143]
[1759798624517,0.0390835,124870.0,124860.0,0.73153143]
[1759798625144,0.0360935,124870.0,124860.0,0.73153143]
[1759798625581,0.0340435,124870.0,124860.0,0.73153143]
[1759798626218,0.0360935,124870.0,124860.0,0.73149143]
[1759798626870,0.0340435,124870.0,124860.0,0.73436143]
[1759798627471,0.0340435,124870.0,124860.0,0.73149143]
[1759798627927,0.0340435,124870.0,124860.0,0.73436143]
[1759798637997,0.0390035,124870.0,124860.0,0.18420843]
[1759798638269,0.0390035,124870.0,124860.0,0.49352843]
[1759798646620,0.0390035,124870.0,124860.0,0.41028843]
[1759798646820,0.0390035,124870.0,124860.0,0.49352843]
[1759798648836,0.0360435,124870.0,124860.0,0.49557843]
[1759798649054,0.0340435,124870.0,124860.0,2.00363543]
[1759798649266,0.0340435,124870.0,124860.0,1.06936243]
[1759798654090,0.0360435,124870.0,124860.0,1.06649243]
[1759798654315,0.0340435,124870.0,124860.0,1.06936243]
[1759798656097,0.0340435,124870.0,124860.0,1.06649243]
[1759798656321,0.0361235,124870.0,124860.0,1.06649243]
[1759798656525,0.0340435,124870.0,124860.0,1.06649243]
[1759798657754,0.0340435,124870.0,124860.0,1.06936243]
[1759798658737,0.0340435,124870.0,124860.0,1.06649243]
[1759798660430,0.0361235,124870.0,124860.0,0.93489743]
[1759798663002,0.0340435,124870.0,124860.0,0.93489743]
[1759798664038,0.0361235,124870.0,124860.0,0.93489743]
[1759798664234,0.0391235,124870.0,124860.0,0.93489743]
[1759798664656,0.0361235,124870.0,124860.0,0.93489743]
[1759798664885,0.0391235,124870.0,124860.0,0.93284743]
[1759798665409,0.0391235,124870.0,124860.0,0.81647843]
[1759798666417,0.0340435,124870.0,124860.0,0.81845843]
[1759798666826,0.0360035,124870.0,124860.0,0.81845843]
[1759798668135,0.0360035,124870.0,124860.0,0.50917843]
[1759798668515,0.0360035,124870.0,124860.0,0.81845843]
[1759798669585,0.0360035,124870.0,124860.0,0.50917843]
[1759798669734,0.0360035,124870.0,124860.0,0.81845843]
[1759798670173,0.0360035,124870.0,124860.0,0.50917843]
[1759798670325,0.0390535,124870.0,124860.0,0.81845843]
[1759798670730,0.0390535,124870.0,124860.0,0.73323843]
[1759798670970,0.0390535,124870.0,124860.0,0.81647843]
[1759798671685,0.0390535,124870.0,124860.0,0.75930843]
[1759798672598,0.0390535,124870.0,124860.0,0.67606843]
[1759798672814,0.0390535,124870.0,124860.0,0.76128843]
[1759798675059,0.0360035,124870.0,124860.0,0.76128843]
[1759798675828,0.0390535,124870.0,124860.0,0.76128843]
[1759798676939,0.0390535,124870.0,124860.0,0.70621843]
[1759798677766,0.0360035,124870.0,124860.0,0.70819843]
[1759798678849,0.0340435,124870.0,124860.0,0.70819843]
[1759798681303,0.0340435,124870.0,124860.0,0.71106843]
[1759798684809,0.0340435,124870.0,124860.0,0.29308343]
[1759798684810,0.0390535,124870.0,124860.0,0.29308343]
[1759798684933,0.0390535,124870.0,124860.0,0.60232343]
[1759798685132,0.0360035,124870.0,124860.0,0.60430343]
[1759798689287,0.0340435,124870.0,124860.0,0.60430343]
[1759798690152,0.0340435,124870.0,124860.0,0.29506343]
[1759798690377,0.0340435,124870.0,124860.0,0.60430343]
[1759798691148,0.0340435,124870.0,124860.0,0.29506343]
[1759798691352,0.0340435,124870.0,124860.0,0.60430343]
[1759798691775,0.0340435,124870.0,124860.0,0.29506343]
[1759798691983,0.0340435,124870.0,124860.0,0.60430343]
[1759798693150,0.0340435,124870.0,124860.0,0.29506343]
[1759798693370,0.0340435,124870.0,124860.0,0.60430343]
[1759798698121,0.0340435,124870.0,124860.0,0.29506343]
[1759798698322,0.0340435,124870.0,124860.0,0.60430343]
[1759798698956,0.0340435,124870.0,124860.0,0.29506343]
[1759798699165,0.0340435,124870.0,124860.0,0.60430343]
[1759798701996,0.0340435,124870.0,124860.0,0.29506343]
[1759798702202,0.0340435,124870.0,124860.0,0.60426343]
[1759798708555,0.0360335,124870.0,124860.0,0.60426343]
[1759798709141,0.0340435,124870.0,124860.0,0.60426343]
[1759798716424,0.0340435,124870.0,124860.0,0.60713343]
[1759798716869,0.0340435,124870.0,124860.0,0.60426343]
[1759798717342,0.0340435,124870.0,124860.0,0.69025549]
[1759798717548,0.0340435,124870.0,124860.0,1.03025549]
[1759798722215,0.0340435,124870.0,124860.0,0.72105549]
[1759798722416,0.0340435,124870.0,124860.0,1.03021549]
[1759798727650,0.0340435,124870.0,124860.0,0.72105549]
[1759798727846,0.0340435,124870.0,124860.0,1.03021549]
[1759798737888,0.0340435,124870.0,124860.0,1.02734549]
[1759798738095,0.0340435,124870.0,124860.0,1.03021549]
[1759798740112,0.0340435,124870.0,124860.0,0.72105549]
[1759798740311,0.0393035,124870.0,124860.0,0.52420843]
[1759798740531,0.0393035,124870.0,124860.0,0.26744843]
[1759798740735,0.05924935,124870.0,124860.0,0.18420843]
[1759798740936,0.19947007,124870.0,124860.0,0.49332843]
[1759798742374,0.19947007,124870.0,124860.0,0.24990903]
[1759798742709,0.19947007,124870.0,124860.0,0.49332843]
[1759798743735,0.19947007,124870.0,124860.0,0.33314903]
[1759798744069,0.19947007,124870.0,124860.0,0.49332843]
[1759798744270,0.19947007,124870.0,124860.0,0.02402903]
[1759798744525,0.19947007,124870.0,124850.0,0.16935817]
[1759798744687,0.1601794,124860.0,124850.0,0.25259817]
[1759798744904,0.1654394,124860.0,124850.0,0.50251074]
[1759798746103,0.00526,124860.0,124850.0,0.50251074]
[1759798746871,0.00526,124860.0,124850.0,0.19339074]
[1759798747206,0.00526,124860.0,124850.0,0.50251074]
[1759798747433,0.00526,124860.0,124850.0,0.50466074]
[1759798747634,0.0371435,124870.0,124860.0,0.1601794]
[1759798747808,0.0393035,124870.0,124860.0,0.1601794]
[1759798755942,0.0393035,124870.0,124860.0,0.1623294]
[1759798756588,0.0362035,124870.0,124860.0,0.1623294]
[1759798756803,0.0340435,124870.0,124860.0,0.1651994]
[1759798757161,0.0340435,124870.0,124860.0,0.18922986]
[1759798758406,0.0340435,124870.0,124860.0,0.18635986]
[1759798759262,0.0340435,124870.0,124860.0,1.67900886]
[1759798760896,0.0340435,124870.0,124860.0,1.76213092]
[1759798761282,0.0340435,124870.0,124860.0,2.10213092]
[1759798766165,0.0340435,124870.0,124860.0,2.32801092]
[1759798766367,0.0340435,124870.0,124860.0,2.41125092]
[1759798772311,0.0340435,124870.0,124860.0,2.37691294]
[1759798772513,0.0340435,124870.0,124860.0,2.40094018]
[1759798786591,0.0340435,124870.0,124860.0,2.39807018]
[1759798786800,0.0340435,124870.0,124860.0,2.39879018]
[1759798787508,0.0340435,124870.0,124860.0,2.39807018]
[1759798788577,0.0340435,124870.0,124860.0,2.0389067]
[1759798788900,0.0340435,124870.0,124860.0,2.3479467]
[1759798790564,0.0340435,124870.0,124860.0,2.0389067]
[1759798790714,0.0340435,124870.0,124860.0,2.3479467]
[1759798790887,0.0340435,124870.0,124860.0,2.3486667]
[1759798791970,0.0340435,124870.0,124860.0,2.0396267]
[1759798792177,0.0340435,124870.0,124860.0,2.3486667]
[1759798792532,0.0340435,124870.0,124860.0,2.0396267]
[1759798792698,0.0340435,124870.0,124860.0,2.3479467]
[1759798792845,0.0340435,124870.0,124860.0,2.3486667]
[1759798796737,0.0340435,124870.0,124860.0,2.3479467]
[1759798797139,0.0393435,124870.0,124860.0,1.0625157]